[Event "European Corporate Championship 2022"]
[Site "Rotterdam"]
[Date "2022.06.19"]
[Round "7.13"]
[White "Pardo Simon, David"]
[Black "Kanyamarala, Tarun"]
[Result "0-1"]
[ECO "A88"]
[WhiteElo "2461"]
[BlackElo "2388"]
[Annotator "TA"]
[PlyCount "97"]
[EventDate "2022.06.18"]
[EventType "team-tourn"]
[EventCountry "NED"]
[SourceTitle "playchess.com"]
[Source "ChessBase"]
[SourceQuality "1"]
[TimeControl "900+5"]

{[%evp 15,97,29,44,0,0,4,4,13,25,0,29,35,43,42,76,83,101,56,36,26,16,25,102,87,104,108,184,54,81,-9,-3,-3,-2,-22,-22,-24,-15,-56,12,6,11,7,36,36,36,40,33,40,30,37,48,54,64,69,60,61,747,733,662,663,977,964,950,1004,2791,2565,2438,2517,2380,2097,29973,29974,29976,29962,29973,12825,29979,29977,29989,29990,29990,29991,29992,29993]} 1. Nf3 {[%emt 0:00:03]} f5 {[%emt 0:00:12]} 2. d4 {[%emt 0:00:06]} Nf6 {[%emt 0:00:02]} 3. g3 {[%emt 0:00:02]} g6 {[%emt 0:00:02]} 4. Bg2 {[%emt 0:00:02]} Bg7 {[%emt 0:00:01]} 5. O-O {[%emt 0:00:02]} O-O {[%emt 0:00:02]} 6. c4 {[%emt 0:00:22]} d6 {[%emt 0:00:02]} 7. Nc3 {[%emt 0:00:02]} c6 {[%emt 0:00:01]} 8. b3 {[%emt 0:00:09]} Qc7 {[%emt 0:00:14] Recently 8...Qa5 got a lot of attention.} 9. Bb2 {[%emt 0:00:36] A88: Dutch Defence: Leningrad System: 5 Nf3 0-0 6 0-0 d6 7 Nc3 c6.} e5 {[%emt 0:00:48]} 10. dxe5 {[%emt 0:00:01]} dxe5 {[%emt 0:00:02]} 11. e4 {[%emt 0:00:01] The position is equal.} f4 {[%emt 0:00:55]} 12. Qc2 {[%emt 0:00:55]} (12. Na4 $5 {[%cal Rb2e5]}) 12... Nh5 {[%emt 0:00:54] [#]} 13. Ba3 $146 {[%emt 0:01:26]} ({Predecessor:} 13. c5 Bg4 14. h3 Bxf3 15. Bxf3 fxg3 16. Bxh5 gxf2+ 17. Rxf2 Rxf2 18. Qxf2 gxh5 19. Ne2 {0-1 (28) Papahristoudis,A (2066)-Klip,H (2351) Aghios Kirykos 2009}) 13... Re8 {[%emt 0:00:50]} 14. Rad1 {[%emt 0:00:11]} Na6 {[%emt 0:01:12]} 15. Bd6 {[%emt 0:00:41]} Qf7 {[%emt 0:00:12]} 16. Na4 {[%emt 0:00:47]} Bg4 {[%emt 0:03:30]} 17. h3 {[%emt 0:01:07]} Bxf3 {[%emt 0:00:02]} 18. Bxf3 {[%emt 0:00:01]} g5 {[%emt 0:00:01]} (18... fxg3 $11 19. Bxh5 g2 20. Kxg2 gxh5) 19. Bg4 {[%emt 0:00:37] A strong pair of Bishops.} Rad8 {[%emt 0:00:23]} 20. c5 {[%emt 0:01:35]} Bf8 {[%emt 0:00:44] [#]} (20... Nf6 $16) 21. Bxf8 {[%emt 0:01:43]} ({White should play} 21. Be2 $1 $18 {[%cal Re2c4]}) 21... Kxf8 {[%emt 0:00:30]} 22. Qc3 {[%emt 0:00:16]} (22. Rd6 $16) 22... Rxd1 $11 {[%emt 0:00:59]} 23. Rxd1 {[%emt 0:00:01]} ({Much weaker is} 23. Bxd1 Nf6 $17) 23... Nf6 {[%emt 0:00:03] Prevents Rd7.} 24. Bf5 {[%emt 0:00:23]} Nc7 {[%emt 0:00:07]} 25. Nb2 {[%emt 0:02:34]} Nb5 {[%emt 0:00:32]} 26. Qc4 {[%emt 0:01:12]} (26. Qd3 {is interesting.} Qe7 27. h4 fxg3 28. hxg5 gxf2+ 29. Kxf2 Nh5 30. Qe3) 26... Nd4 {[%emt 0:00:18]} (26... Qe7 $15) 27. Qxf7+ {[%emt 0:01:06]} Kxf7 {[%emt 0:00:01]} 28. Nc4 {[%emt 0:00:00]} Re7 {[%emt 0:00:08] [#]} 29. Nxe5+ $1 {[%emt 0:00:00]} Rxe5 {[%emt 0:00:34]} 30. Rxd4 {[%emt 0:00:00] Threatens to win with gxf4.} fxg3 $14 {[%emt 0:00:23][%mdl 4096] Endgame KRB-KRN} 31. b4 {[%emt 0:00:00]} gxf2+ {[%emt 0:00:20]} 32. Kxf2 {[%emt 0:00:00]} Re8 {[%emt 0:00:40]} 33. Kf3 {[%emt 0:00:00]} h6 {[%emt 0:00:25]} 34. a4 {[%emt 0:00:00]} a6 {[%emt 0:00:28]} 35. Rd6 {[%emt 0:00:00]} Ke7 $2 {[%emt 0:00:19][%mdl 8192] Black cannot hold the game after this.} (35... h5 $14) 36. Re6+ $18 {[%emt 0:00:00]} Kf7 {[%emt 0:00:01]} 37. Rxe8 {[%emt 0:00:00]} Nxe8 {[%emt 0:01:25] KB-KN} 38. Bc8 {[%emt 0:00:00]} Ke7 {[%emt 0:00:23]} 39. Bxb7 {[%emt 0:00:00]} Kd7 {[%emt 0:00:01]} 40. Bxa6 {[%emt 0:00:02]} Ng7 {[%emt 0:00:02]} 41. Bc4 {[%emt 0:00:09] Hoping for b5.} Nh5 {[%emt 0:00:01]} 42. b5 {[%emt 0:00:27]} cxb5 {[%emt 0:00:02]} 43. axb5 {[%emt 0:00:01][%cal Ba4b5,Bb5b6][%mdl 32]} Kc7 {[%emt 0:00:01]} 44. b6+ {[%emt 0:00:06]} Kb7 {[%emt 0:00:01]} 45. Bd5+ {[%emt 0:00:02]} Kb8 {[%emt 0:00:01]} 46. c6 {[%emt 0:00:02][%cal Bc5c6,Bc6c7][%mdl 32] White mates.} Nf6 {[%emt 0:00:01]} 47. c7+ {[%emt 0:00:09]} Kc8 {[%emt 0:00:01]} 48. Be6+ {[%emt 0:00:01]} Nd7 {[%emt 0:00:01]} 49. Kg4 {[%emt 0:00:06][%mdl 32768] Weighted Error Value: White=0.21 (precise) /Black=0.63. Sensor Board Error (Ke4/e5)?} 0-1

[Event "European Corporate Championship 2022"]
[Site "Rotterdam"]
[Date "2022.06.19"]
[Round "7.14"]
[White "Flynn, Jacob"]
[Black "Jain Aum"]
[Result "1-0"]
[ECO "E01"]
[WhiteElo "2205"]
[BlackElo "1591"]
[Annotator "NA RC"]
[PlyCount "87"]
[EventDate "2022.06.18"]
[EventType "team-tourn"]
[EventCountry "NED"]
[SourceTitle "playchess.com"]
[Source "ChessBase"]
[SourceQuality "1"]
[TimeControl "900+5"]

1. d4 {[%emt 0:00:03]} e6 {[%emt 0:00:07]} 2. Nf3 {[%emt 0:00:06]} d5 {[%emt 0:00:03]} 3. g3 {[%emt 0:00:12]} Bd6 {[%emt 0:00:37]} 4. Bg2 {[%emt 0:00:14]} Nd7 {[%emt 0:00:03]} 5. c4 {[%emt 0:00:21]} c6 {[%emt 0:00:13]} 6. O-O {[%emt 0:00:53]} Ngf6 {[%emt 0:00:06]} 7. Qc2 {[%emt 0:00:10]} O-O {[%emt 0:00:45]} 8. Nbd2 {[%emt 0:00:01]} Re8 {[%emt 0:01:53]} 9. e4 {[%emt 0:00:02]} dxe4 {[%emt 0:00:48]} 10. Nxe4 {[%emt 0:00:01]} Nxe4 {[%emt 0:01:15]} 11. Qxe4 {[%emt 0:00:02]} e5 {[%emt 0:00:15]} 12. d5 {[%emt 0:03:02]} Nf6 {[%emt 0:01:45]} 13. Qc2 {[%emt 0:00:19]} cxd5 {[%emt 0:02:01]} 14. cxd5 {[%emt 0:00:02]} Bg4 {[%emt 0:00:53]} 15. Qb3 {[%emt 0:01:11]} Qd7 {[%emt 0:00:26]} 16. Be3 {[%emt 0:09:46]} a6 {[%emt 0:00:32]} 17. Nd2 {[%emt 0:00:00]} Rac8 {[%emt 0:00:32]} 18. Nc4 {[%emt 0:00:00]} Bc5 {[%emt 0:02:16]} 19. Nb6 {[%emt 0:00:00]} Bxb6 {[%emt 0:00:06]} 20. Bxb6 {[%emt 0:00:00]} Bh3 {[%emt 0:00:12]} 21. Rfd1 {[%emt 0:00:00]} Bxg2 {[%emt 0:00:20]} 22. Kxg2 {[%emt 0:00:00]} Ne4 {[%emt 0:00:40]} 23. Re1 {[%emt 0:00:00]} Nd6 {[%emt 0:00:23]} 24. a4 {[%emt 0:00:00]} e4 {[%emt 0:00:19]} 25. Re2 {[%emt 0:00:00]} f5 {[%emt 0:00:05]} 26. Be3 {[%emt 0:00:00]} h6 {[%emt 0:00:01]} 27. h4 {[%emt 0:00:00]} Kh7 {[%emt 0:00:01]} 28. Rd1 {[%emt 0:00:00]} Rc4 {[%emt 0:00:10]} 29. Bf4 {[%emt 0:00:00]} Rec8 {[%emt 0:00:01]} 30. Bxd6 {[%emt 0:00:00]} Qxd6 {[%emt 0:00:01]} 31. Qxb7 {[%emt 0:00:00]} f4 {[%emt 0:00:16]} 32. Kh2 {[%emt 0:00:00]} fxg3+ {[%emt 0:00:12]} 33. fxg3 {[%emt 0:00:00]} Rc2 {[%emt 0:00:10]} 34. Rdd2 {[%emt 0:00:00]} Rxd2 35. Rxd2 {[%emt 0:00:00]} Rf8 {[%emt 0:00:17]} 36. Qc6 {[%emt 0:00:00]} Qe5 {[%emt 0:00:13]} 37. Qe6 {[%emt 0:00:00]} Qxe6 {[%emt 0:00:05]} 38. dxe6 {[%emt 0:00:00]} Rf6 {[%emt 0:00:05]} 39. Rd6 {[%emt 0:00:38]} Rf8 {[%emt 0:00:06]} 40. e7 {[%emt 0:00:05]} Re8 {[%emt 0:00:01]} 41. Re6 {[%emt 0:00:01]} Kg8 {[%emt 0:00:08]} 42. Rxe4 {[%emt 0:00:07]} Kf7 {[%emt 0:00:00]} 43. Kg2 {[%emt 0:00:09]} Rxe7 {[%emt 0:00:01]} 44. Rxe7+ {[%emt 0:00:05]} 1-0

[Event "European Corporate Championship 2022"]
[Site "Rotterdam"]
[Date "2022.06.19"]
[Round "7.15"]
[White "Maral Pranav"]
[Black "Melaugh, Shane"]
[Result "0-1"]
[ECO "A85"]
[WhiteElo "1329"]
[BlackElo "2087"]
[Annotator "NA RC"]
[PlyCount "66"]
[EventDate "2022.06.18"]
[EventType "team-tourn"]
[EventCountry "NED"]
[SourceTitle "playchess.com"]
[Source "ChessBase"]
[SourceQuality "1"]
[TimeControl "900+5"]

1. d4 {[%emt 0:00:02]} e6 {[%emt 0:00:01]} 2. c4 {[%emt 0:00:02]} f5 {[%emt 0:00:02]} 3. Nc3 {[%emt 0:00:02]} Nf6 {[%emt 0:00:02]} 4. e3 {[%emt 0:00:24]} Bb4 {[%emt 0:00:03]} 5. a3 {[%emt 0:00:09]} Bxc3+ {[%emt 0:00:03]} 6. bxc3 {[%emt 0:00:01]} O-O {[%emt 0:00:02]} 7. Nf3 {[%emt 0:00:02]} d6 {[%emt 0:00:02]} 8. a4 {[%emt 0:00:16]} Nc6 {[%emt 0:00:04]} 9. Ba3 {[%emt 0:00:07]} Re8 {[%emt 0:00:10]} 10. Be2 {[%emt 0:00:25]} e5 {[%emt 0:00:14]} 11. O-O {[%emt 0:00:51]} f4 {[%emt 0:01:24]} 12. exf4 {[%emt 0:01:40]} exf4 {[%emt 0:00:03]} 13. Re1 {[%emt 0:01:04]} Qd7 {[%emt 0:01:46]} 14. Qb3 {[%emt 0:01:31]} Qf7 {[%emt 0:00:12]} 15. Bd3 {[%emt 0:01:27]} Bg4 {[%emt 0:00:46]} 16. Nd2 {[%emt 0:01:26]} f3 {[%emt 0:00:22]} 17. g3 {[%emt 0:00:13]} b6 {[%emt 0:01:49]} 18. Ne4 {[%emt 0:02:31]} Nxe4 {[%emt 0:00:37]} 19. Bxe4 {[%emt 0:00:15]} Na5 {[%emt 0:00:48]} 20. Qb5 {[%emt 0:01:15]} Rad8 {[%emt 0:00:45]} 21. Rab1 {[%emt 0:01:19]} Be6 {[%emt 0:01:32]} 22. Bd5 {[%emt 0:00:56]} Bxd5 {[%emt 0:01:08]} 23. cxd5 {[%emt 0:00:24]} h5 {[%emt 0:00:25]} 24. Rbd1 {[%emt 0:00:28]} a6 {[%emt 0:00:49]} 25. Qd3 {[%emt 0:00:08]} Qxd5 {[%emt 0:00:08]} 26. Bc1 {[%emt 0:00:04]} Nc4 {[%emt 0:00:50]} 27. h4 {[%emt 0:00:06]} b5 {[%emt 0:00:17]} 28. axb5 {[%emt 0:00:03]} axb5 {[%emt 0:00:01]} 29. Qb1 {[%emt 0:00:05]} Re2 {[%emt 0:00:14]} 30. Rxe2 {[%emt 0:00:13]} fxe2 {[%emt 0:00:03]} 31. Re1 {[%emt 0:00:01]} Re8 {[%emt 0:00:21]} 32. Qd3 {[%emt 0:00:02]} Ne5 {[%emt 0:00:09]} 33. Qc2 {[%emt 0:00:11]} Nf3+ {[%emt 0:00:02]} 0-1

[Event "European Corporate Championship 2022"]
[Site "Rotterdam"]
[Date "2022.06.19"]
[Round "7.16"]
[White "Dayanand Kanyamarala"]
[Black "Pedersen, Christopher R.N.H."]
[Result "0-1"]
[ECO "A16"]
[WhiteElo "1142"]
[BlackElo "2118"]
[Annotator "NA RC"]
[PlyCount "75"]
[EventDate "2022.06.18"]
[EventType "team-tourn"]
[EventCountry "NED"]
[SourceTitle "playchess.com"]
[Source "ChessBase"]
[SourceQuality "1"]
[TimeControl "900+5"]

1. c4 {[%emt 0:00:07]} e5 {[%emt 0:00:25]} 2. Nc3 {[%emt 0:00:05]} Nf6 {[%emt 0:00:04]} 3. e4 {[%emt 0:00:04]} b6 {[%emt 0:00:56]} 4. d3 {[%emt 0:00:09]} Bb7 {[%emt 0:00:08]} 5. g3 {[%emt 0:00:23]} Bb4 {[%emt 0:00:04]} 6. Nge2 {[%emt 0:00:14]} Nc6 {[%emt 0:00:37]} 7. Bg2 {[%emt 0:00:14]} Nd4 {[%emt 0:00:08]} 8. O-O {[%emt 0:00:09]} Nxe2+ {[%emt 0:00:09]} 9. Qxe2 {[%emt 0:00:21]} Bxc3 {[%emt 0:00:03]} 10. bxc3 {[%emt 0:00:05]} h6 {[%emt 0:00:09]} 11. Be3 {[%emt 0:00:26]} O-O {[%emt 0:00:29]} 12. Rab1 {[%emt 0:00:29]} d6 {[%emt 0:01:06]} 13. f4 {[%emt 0:00:46]} exf4 {[%emt 0:01:16]} 14. Rxf4 {[%emt 0:00:13]} c6 {[%emt 0:00:44]} 15. d4 {[%emt 0:00:56]} d5 {[%emt 0:00:28]} 16. e5 {[%emt 0:01:14]} Ne4 {[%emt 0:00:24]} 17. Bxe4 {[%emt 0:00:43]} dxe4 {[%emt 0:00:02]} 18. c5 {[%emt 0:01:28]} Rc8 {[%emt 0:00:55]} 19. Rxe4 {[%emt 0:00:48]} b5 {[%emt 0:00:41]} 20. Qg4 {[%emt 0:01:30]} Kh8 {[%emt 0:01:05]} 21. Rf1 {[%emt 0:01:56]} Qa5 {[%emt 0:00:24]} 22. Qh5 {[%emt 0:01:10]} Rc7 {[%emt 0:00:03]} 23. Ref4 {[%emt 0:00:45]} Qxa2 {[%emt 0:00:05]} 24. Rxf7 {[%emt 0:00:15]} Rcxf7 {[%emt 0:00:07]} 25. Rxf7 {[%emt 0:00:02]} Qxf7 {[%emt 0:00:05]} 26. Qh3 {[%emt 0:00:58]} Bc8 {[%emt 0:00:45]} 27. Qg2 {[%emt 0:00:11]} Be6 {[%emt 0:00:17]} 28. Bf4 {[%emt 0:00:44]} g5 {[%emt 0:00:08]} 29. Be3 {[%emt 0:00:06]} Qf3 {[%emt 0:00:10]} 30. Qxf3 {[%emt 0:00:08]} Rxf3 {[%emt 0:00:02]} 31. Bf2 {[%emt 0:00:04]} Rxc3 {[%emt 0:00:03]} 32. Kg2 {[%emt 0:00:15]} Kg7 {[%emt 0:00:03]} 33. Kf1 {[%emt 0:00:08]} Kg6 {[%emt 0:00:01]} 34. Ke2 {[%emt 0:00:02]} Kf5 {[%emt 0:00:18]} 35. Be1 {[%emt 0:00:01]} Rc2+ {[%emt 0:00:05]} 36. Kd1 {[%emt 0:00:05]} Rxh2 {[%emt 0:00:02]} 37. Kc1 {[%emt 0:00:11]} h5 {[%emt 0:00:06]} 38. Kd1 {[%emt 0:00:11]} 0-1

[Event "European Corporate Championship 2022"]
[Site "Rotterdam"]
[Date "2022.06.19"]
[Round "7.18"]
[White "Dekker, Derk"]
[Black "Heer, Stephan"]
[Result "1-0"]
[ECO "B06"]
[WhiteElo "1893"]
[BlackElo "2047"]
[Annotator "NA RC"]
[PlyCount "75"]
[EventDate "2022.06.18"]
[EventType "team-tourn"]
[EventCountry "NED"]
[SourceTitle "playchess.com"]
[Source "ChessBase"]
[SourceQuality "1"]
[TimeControl "900+5"]

1. e4 {[%emt 0:00:01]} g6 {[%emt 0:00:03]} 2. d4 {[%emt 0:00:01]} Bg7 {[%emt 0:00:04]} 3. Be3 {[%emt 0:00:12]} d6 {[%emt 0:00:03]} 4. Nc3 {[%emt 0:00:12]} a6 {[%emt 0:00:03]} 5. Bc4 {[%emt 0:00:15]} b5 {[%emt 0:00:26]} 6. Bb3 {[%emt 0:00:54]} Bb7 {[%emt 0:00:03]} 7. f3 {[%emt 0:00:07]} Nd7 {[%emt 0:00:16]} 8. a4 {[%emt 0:01:28]} b4 {[%emt 0:01:11]} 9. Nd5 {[%emt 0:00:10]} c5 {[%emt 0:00:20]} 10. Ne2 {[%emt 0:00:40]} e6 {[%emt 0:00:30]} 11. Ndf4 {[%emt 0:00:25]} cxd4 {[%emt 0:00:54]} 12. Nxd4 {[%emt 0:01:01]} e5 {[%emt 0:02:32]} 13. Nde6 {[%emt 0:00:02]} fxe6 {[%emt 0:00:01]} 14. Nxe6 {[%emt 0:00:04]} Qe7 {[%emt 0:00:02]} 15. Nc7+ {[%emt 0:00:48]} Kd8 {[%emt 0:00:09]} 16. Ne6+ {[%emt 0:03:13]} Kc8 {[%emt 0:01:09]} 17. Qd2 {[%emt 0:04:08]} a5 {[%emt 0:02:24]} 18. c3 {[%emt 0:00:33]} Nc5 {[%emt 0:00:54]} 19. Bxc5 {[%emt 0:00:29]} dxc5 {[%emt 0:00:18]} 20. cxb4 {[%emt 0:00:09]} Bh6 {[%emt 0:00:26]} 21. Qe2 {[%emt 0:00:49]} cxb4 {[%emt 0:01:49]} 22. Qc4+ {[%emt 0:00:23]} Kb8 {[%emt 0:00:08]} 23. Qb5 {[%emt 0:00:10]} Nf6 {[%emt 0:00:33]} 24. Qxe5+ {[%emt 0:00:04]} Ka7 {[%emt 0:00:20]} 25. Qd4+ {[%emt 0:00:18]} Kb8 {[%emt 0:00:15]} 26. Qe5+ {[%emt 0:00:06]} Ka7 {[%emt 0:00:26]} 27. Qxa5+ {[%emt 0:00:02]} Kb8 {[%emt 0:00:03]} 28. Qe5+ {[%emt 0:00:04]} Ka7 {[%emt 0:00:03]} 29. Qd4+ {[%emt 0:00:12]} Kb8 {[%emt 0:00:18]} 30. O-O {[%emt 0:00:14]} Ra5 {[%emt 0:00:47]} 31. Kh1 {[%emt 0:00:01]} Rc8 {[%emt 0:00:12]} 32. Rfd1 {[%emt 0:00:12]} Rc6 {[%emt 0:00:41]} 33. Rd3 {[%emt 0:00:07]} Ka8 {[%emt 0:00:16]} 34. Nd8 {[%emt 0:00:09]} Rc7 {[%emt 0:00:07]} 35. Nxb7 {[%emt 0:00:05]} Rxb7 {[%emt 0:00:02]} 36. Rc1 {[%emt 0:00:06]} Ra6 {[%emt 0:00:09]} 37. Rc8+ {[%emt 0:00:06]} Rb8 {[%emt 0:00:03]} 38. Bd5+ {[%emt 0:00:05]} 1-0

[Event "European Corporate Championship 2022"]
[Site "Rotterdam"]
[Date "2022.06.19"]
[Round "7.19"]
[White "Liefrink, Feike"]
[Black "Vosooghi Dizaji, Mehdi"]
[Result "1-0"]
[ECO "A00"]
[WhiteElo "1927"]
[BlackElo "1878"]
[Annotator "NA RC"]
[PlyCount "27"]
[EventDate "2022.06.18"]
[EventType "team-tourn"]
[EventCountry "NED"]
[SourceTitle "playchess.com"]
[Source "ChessBase"]
[SourceQuality "1"]
[TimeControl "900+5"]

1. Nc3 {[%emt 0:00:04]} e5 {[%emt 0:00:05]} 2. Nf3 {[%emt 0:00:04]} Nc6 {[%emt 0:00:03]} 3. d4 {[%emt 0:00:02]} exd4 {[%emt 0:00:13]} 4. Nxd4 {[%emt 0:00:01]} Bc5 {[%emt 0:00:10]} 5. Nf5 {[%emt 0:00:25]} Qf6 {[%emt 0:00:30]} 6. e4 {[%emt 0:00:04]} g6 {[%emt 0:00:08]} 7. Ne3 {[%emt 0:00:03]} Nge7 {[%emt 0:00:15]} 8. Bd3 {[%emt 0:00:06]} O-O {[%emt 0:00:26]} 9. O-O {[%emt 0:00:04]} Ne5 {[%emt 0:00:17]} 10. Be2 {[%emt 0:02:09]} c6 {[%emt 0:00:26]} 11. f4 {[%emt 0:00:29]} Bd6 {[%emt 0:01:49]} 12. fxe5 {[%emt 0:00:16]} Qxe5 {[%emt 0:00:02]} 13. Ng4 {[%emt 0:00:35]} Bc5+ {[%emt 0:00:40]} 14. Kh1 {[%emt 0:00:19]} 1-0

[Event "European Corporate Championship 2022"]
[Site "Rotterdam"]
[Date "2022.06.19"]
[Round "8.1"]
[White "Van Wely, Loek"]
[Black "Pardo Simon, David"]
[Result "1-0"]
[ECO "A41"]
[WhiteElo "2618"]
[BlackElo "2461"]
[Annotator "TA"]
[PlyCount "71"]
[EventDate "2022.06.18"]
[EventType "team-tourn"]
[EventCountry "NED"]
[SourceTitle "playchess.com"]
[Source "ChessBase"]
[SourceQuality "1"]
[TimeControl "900+5"]

{[%evp 10,71,44,35,42,39,34,32,41,28,25,25,47,39,42,0,62,43,82,72,85,81,78,92,118,44,45,33,55,47,127,94,222,230,229,225,230,230,230,234,250,248,241,249,250,238,252,249,243,240,252,259,248,248,256,229,830,830,800,757,1145,853,29991,29985]} 1. Nf3 {[%emt 0:00:02]} d6 {[%emt 0:00:13]} 2. d4 {[%emt 0:00:02][%cal Bd2d4,Bd4d5][%mdl 32]} g6 {[%emt 0:00:12]} 3. c4 {[%emt 0:00:04]} Bg7 {[%emt 0:00:20]} 4. Nc3 {[%emt 0:00:03]} Bg4 {[%emt 0:00:43]} 5. g3 {[%emt 0:00:03]} Nc6 {[%emt 0:00:55]} 6. d5 {[%emt 0:00:30]} Bxf3 {[%emt 0:00:10] A41: 1 d4 d6: Tartakower System and Modern Defence.} 7. exf3 {[%emt 0:00:02]} Nd4 {[%emt 0:00:01]} 8. Bg2 {[%emt 0:00:21]} c5 {[%emt 0:00:14] White is slightly better.} 9. dxc6 {[%emt 0:00:09]} bxc6 {[%emt 0:01:09]} 10. O-O {[%emt 0:00:43]} c5 {[%emt 0:00:31]} 11. f4 {[%emt 0:00:41]} Rb8 {[%emt 0:00:40] [#]} 12. Re1 $146 {[%emt 0:00:18]} ({Predecessor:} 12. Ne2 Nxe2+ 13. Qxe2 h5 14. Rb1 Nh6 15. Bh3 O-O 16. b3 e6 17. Rd1 Qe7 18. f5 Nxf5 19. Bxf5 gxf5 20. Qxh5 {1-0 (40) Delchev,A (2543)-Murshed,N (2404) Chess.com INT 2020}) 12... Nf6 {[%emt 0:00:39]} (12... e6 $11) 13. Nb5 $14 {[%emt 0:01:07]} Nxb5 {[%emt 0:00:52]} 14. Bc6+ {[%emt 0:00:02]} (14. cxb5 O-O $11) 14... Kf8 {[%emt 0:01:36] [#] Strongly threatening ...Nd4.} 15. cxb5 {[%emt 0:00:03]} ({Much worse is} 15. Bxb5 h5 $11) 15... h5 {[%emt 0:00:02]} 16. h3 {[%emt 0:02:01] Prevents Ng4.} Qc8 {[%emt 0:01:43]} 17. Kh2 {[%emt 0:00:09]} ({Reject} 17. Qe2 $6 Ng8 $11) (17. Qa4 $16) 17... Rb6 {[%emt 0:00:10]} 18. Qf3 {[%emt 0:00:35]} e6 {[%emt 0:00:54][%cal Of6g4]} 19. Bd2 {[%emt 0:01:20]} d5 {[%emt 0:00:48]} (19... Ng8 $14) 20. Rac1 {[%emt 0:00:04] White is much more active. The black rooks are badly placed.} Rxc6 {[%emt 0:01:42] Loses the game.} (20... Ne4 $16 21. Rxe4 dxe4 22. Qxe4 Bxb2) 21. bxc6 $18 {[%emt 0:00:02]} Qxc6 {[%emt 0:00:01]} 22. Bb4 {[%emt 0:00:49]} Ne4 {[%emt 0:00:50] [#]} 23. Bxc5+ $1 {[%emt 0:02:15][%mdl 512]} Nxc5 {[%emt 0:00:09]} 24. b4 {[%emt 0:00:24]} Bd4 {[%emt 0:00:41]} 25. Red1 {[%emt 0:00:52][%cal Be1d1,Bd1c1,Bc1c6][%mdl 32]} ({Much less strong is} 25. bxc5 $6 Kg7 26. Red1 Bf6) 25... Bf6 {[%emt 0:00:10]} 26. Rxc5 {[%emt 0:00:20]} Qb6 {[%emt 0:00:40]} 27. a3 {[%emt 0:00:19]} Kg7 {[%emt 0:00:13]} 28. Rdc1 {[%emt 0:00:03]} Rd8 {[%emt 0:00:38]} 29. Qd3 {[%emt 0:00:14]} h4 {[%emt 0:00:11]} 30. Kg2 {[%emt 0:00:25]} hxg3 {[%emt 0:00:02]} 31. fxg3 {[%emt 0:00:01]} d4 {[%emt 0:00:23]} 32. Rc7 {[%emt 0:00:25] R1c6 is the strong threat.} a5 $2 {[%emt 0:00:06]} (32... Rd6 33. h4 Bd8) 33. R1c6 {[%emt 0:00:27]} Qb8 {[%emt 0:00:01]} 34. b5 {[%emt 0:00:01]} a4 {[%emt 0:00:06]} 35. Qc4 {[%emt 0:00:21][%cal Oc7f7] White threatens Rxf7+! and mate.} d3 {[%emt 0:00:03]} 36. Qxe6 {[%emt 0:00:11] Weighted Error Value: White=0.11 (very precise) /Black=0.45} 1-0